fUSD/lending_fUSD_20240503
["ID","MTS","AMOUNT","RATE_DAILY","PERIOD"]
[325354006,1714747854729,-124377.6028728,0.00044,60]
[325354007,1714747854738,-150.0,0.00044,33]
[325354008,1714747854747,-1000000.0,0.00044,60]
[325354009,1714747854756,-1000000.0,0.00044,60]
[325354010,1714747854765,-411314.05223917,0.00044,60]
[325354011,1714747854779,-588685.94776083,0.00044,60]
[325354012,1714747854789,-150.0,0.00044036,30]
[325354013,1714747854799,-1000.0,0.00044088,50]
[325354014,1714747854808,-150.0,0.00044099,30]
[325354015,1714747854817,-1628.65,0.00044109,31]
[325354016,1714747854827,-500.0,0.00044109,31]
[325354017,1714747854836,-300.0,0.00044109,7]
[325354018,1714747854845,-739.13,0.00044109,31]
[325354019,1714747854854,-500.0,0.00044109,31]
[325354020,1714747854863,-500.0,0.00044109,31]
[325354021,1714747854872,-592.15,0.00044109,31]
[325354022,1714747854882,-811.97,0.00044109,31]
[325354023,1714747854902,-695.84,0.00044109,31]
[325354024,1714747854913,-553.04,0.00044109,31]
[325354025,1714747854923,-1383.81,0.00044109,31]
[325354026,1714747854932,-500.0,0.00044109,31]
[325354027,1714747854941,-1091.51,0.00044109,31]
[325354028,1714747854950,-500.0,0.00044109,31]
[325354029,1714747854960,-500.0,0.00044109,31]
[325354030,1714747854970,-500.0,0.00044109,31]
[325354031,1714747854979,-500.0,0.00044109,31]
[325354032,1714747854988,-969.41,0.00044109,31]
[325354033,1714747854997,-500.0,0.00044109,31]
[325354034,1714747855007,-898.28,0.00044109,31]
[325354035,1714747855018,-500.0,0.00044109,31]
[325354036,1714747855027,-500.0,0.00044109,31]
[325354037,1714747855038,-500.0,0.00044109,31]
[325354038,1714747855047,-160.64768616,0.00044109,31]
[325354039,1714747855056,-500.0,0.00044109,31]
[325354040,1714747855066,-500.0,0.00044109,31]
[325354041,1714747855075,-823.65,0.00044109,31]
[325354042,1714747855085,-906.02,0.00044109,31]
[325354043,1714747855094,-500.0,0.00044109,31]
[325354044,1714747855104,-500.0,0.00044109,2]
[325354045,1714747855114,-604.83,0.00044109,31]
[325354046,1714747855123,-500.0,0.00044109,31]
[325354047,1714747855133,-500.0,0.00044109,31]
[325354048,1714747855144,-639.96,0.00044109,31]
[325354049,1714747855153,-500.0,0.00044109,31]
[325354050,1714747855162,-595.85,0.00044109,31]
[325354051,1714747855172,-500.0,0.00044109,31]
[325354052,1714747855182,-625.62,0.00044109,31]
[325354053,1714747855191,-500.0,0.00044109,31]
[325354054,1714747855200,-500.0,0.00044109,31]
[325354055,1714747855210,-500.0,0.00044109,31]
[325354056,1714747855220,-589.24,0.00044109,31]
[325354057,1714747855229,-645.71,0.00044109,31]
[325354058,1714747855239,-500.0,0.00044109,31]
[325354059,1714747855249,-714.07,0.00044109,31]
[325354060,1714747855259,-687.61,0.00044109,31]
[325354061,1714747855268,-500.0,0.00044109,31]
[325354062,1714747855278,-520.28,0.00044109,31]
[325354063,1714747855287,-500.0,0.00044109,31]
[325354064,1714747855297,-1353.04,0.00044109,31]
[325354065,1714747855306,-500.0,0.00044109,31]
[325354066,1714747855316,-500.0,0.00044109,31]
[325354067,1714747855325,-500.0,0.00044109,31]
[325354068,1714747855335,-500.0,0.00044109,31]
[325354069,1714747855345,-1336.44,0.00044109,31]
[325354070,1714747855355,-500.0,0.00044109,31]
[325354071,1714747855364,-500.0,0.00044109,31]
[325354072,1714747855375,-500.0,0.00044109,31]
[325354073,1714747855384,-1004.56,0.00044109,31]
[325354074,1714747855394,-500.0,0.00044109,31]
[325354075,1714747855404,-561.97,0.00044109,31]
[325354076,1714747855414,-500.0,0.00044109,31]
[325354077,1714747855423,-522.66,0.00044109,31]
[325354078,1714747855432,-500.0,0.00044109,31]
[325354079,1714747855442,-500.0,0.00044109,31]
[325354080,1714747855451,-676.87,0.00044109,31]
[325354081,1714747855460,-500.0,0.00044109,31]
[325354082,1714747855470,-500.0,0.00044109,31]
[325354083,1714747855479,-500.0,0.00044109,31]
[325354084,1714747855488,-500.0,0.00044109,31]
[325354085,1714747855497,-936.94,0.00044109,31]
[325354086,1714747855507,-500.0,0.00044109,30]
[325354087,1714747855521,-1523.9,0.00044109,31]
[325354088,1714747855530,-500.0,0.00044109,31]
[325354089,1714747855540,-500.0,0.00044109,31]
[325354090,1714747855549,-981.28,0.00044109,31]
[325354091,1714747855559,-623.56,0.00044109,31]
[325354092,1714747855568,-500.0,0.00044109,31]
[325354093,1714747855578,-1540.53,0.00044109,31]
[325354094,1714747855589,-500.0,0.00044109,31]
[325354095,1714747855603,-500.0,0.00044109,31]
[325354096,1714747855612,-500.0,0.00044109,31]
[325354097,1714747855622,-500.0,0.00044109,31]
[325354098,1714747855631,-500.0,0.00044109,31]
[325354099,1714747855642,-500.0,0.00044109,31]
[325354100,1714747855653,-500.0,0.00044109,31]
[325354101,1714747855663,-562.35,0.00044109,31]
[325354102,1714747855674,-500.0,0.00044109,31]
[325354103,1714747855684,-500.0,0.00044109,31]
[325354104,1714747855695,-428.13087511,0.00044109,31]
[325354105,1714747855706,-500.0,0.00044109,31]
[325354106,1714747855715,-500.0,0.00044109,31]
[325354107,1714747855725,-500.0,0.00044109,31]
[325354108,1714747855735,-961.17,0.00044109,31]
[325354109,1714747855744,-500.0,0.00044109,31]
[325354110,1714747855755,-500.0,0.00044109,2]
[325354111,1714747855766,-1396.3,0.00044109,31]
[325354112,1714747855777,-500.0,0.00044109,31]
[325354113,1714747855787,-794.01,0.00044109,31]
[325354114,1714747855797,-500.0,0.00044109,31]
[325354115,1714747855808,-567.26,0.00044109,31]
[325354116,1714747855820,-500.0,0.00044109,31]
[325354117,1714747855831,-500.0,0.00044109,31]
[325354118,1714747855840,-500.0,0.00044109,31]
[325354119,1714747855850,-500.0,0.00044109,31]
[325354120,1714747855860,-500.0,0.00044109,31]
[325354121,1714747855870,-1172.44,0.00044109,31]
[325354122,1714747855879,-500.0,0.00044109,31]
[325354123,1714747855889,-500.0,0.00044109,31]
[325354124,1714747855900,-500.0,0.00044109,31]
[325354125,1714747855909,-1477.97,0.00044109,31]
[325354126,1714747855919,-500.0,0.00044109,31]
[325354127,1714747855928,-516.24,0.00044109,31]
[325354128,1714747855938,-688.9,0.00044109,31]
[325354129,1714747855947,-500.0,0.00044109,31]
[325354130,1714747855957,-500.0,0.00044109,31]
[325354131,1714747855967,-500.0,0.00044109,31]
[325354132,1714747855976,-1078.07,0.00044109,31]
[325354133,1714747855986,-500.0,0.00044109,31]
[325354134,1714747855995,-500.0,0.00044109,31]
[325354135,1714747856005,-855.16,0.00044109,31]
[325354136,1714747856015,-908.63,0.00044109,31]
[325354137,1714747856024,-1057.17,0.00044109,31]
[325354138,1714747856034,-500.0,0.00044109,31]
[325354139,1714747856043,-500.0,0.00044109,31]
[325354140,1714747856053,-650.71,0.00044109,31]
[325354141,1714747856063,-1148.3,0.00044109,31]
[325354142,1714747856072,-500.0,0.00044109,31]
[325354143,1714747856081,-500.0,0.00044109,31]
[325354144,1714747856091,-500.0,0.00044109,31]
[325354145,1714747856100,-711.89,0.00044109,31]
[325354146,1714747856110,-500.0,0.00044109,31]
[325354147,1714747856120,-500.0,0.00044109,31]
[325354148,1714747856130,-500.0,0.00044109,31]
[325354149,1714747856142,-1681.55,0.00044109,31]
[325354150,1714747856152,-499.17473676,0.00044109,31]
[325354151,1714747856162,-194.65199929,0.00044109,31]
[325354152,1714747856172,-500.0,0.00044109,31]
[325354153,1714747856182,-500.0,0.00044109,31]
[325354154,1714747856191,-599.78,0.00044109,31]
[325354155,1714747856201,-500.0,0.00044109,31]
[325354156,1714747856212,-500.0,0.00044109,31]
[325354157,1714747856222,-1044.27,0.00044109,31]
[325354158,1714747856232,-947.89,0.00044109,31]
[325354159,1714747856241,-500.0,0.00044109,31]
[325354160,1714747856251,-671.46,0.00044109,31]
[325354161,1714747856261,-1112.03,0.00044109,31]
[325354162,1714747856271,-500.0,0.00044109,31]
[325354163,1714747856280,-613.35398141,0.00044109,31]
[325354164,1714747856290,-500.0,0.00044109,31]
[325354165,1714747856301,-500.0,0.00044109,31]
[325354166,1714747856311,-500.0,0.00044109,31]
[325354167,1714747856323,-1474.55,0.00044109,31]
[325354168,1714747856333,-500.0,0.00044109,31]
[325354169,1714747856344,-547.68,0.00044109,31]
[325354170,1714747856355,-500.0,0.00044109,31]
[325354171,1714747856365,-500.0,0.00044109,31]
[325354172,1714747856376,-648.92,0.00044109,31]
[325354173,1714747856387,-500.0,0.00044109,31]
[325354174,1714747856403,-595.1,0.00044109,31]
[325354175,1714747856414,-750.0,0.00044109,30]
[325354176,1714747856424,-500.0,0.00044109,31]
[325354177,1714747856434,-500.0,0.00044109,31]
[325354178,1714747856444,-846.92,0.00044109,31]
[325354179,1714747856454,-994.42,0.00044109,31]
[325354180,1714747856463,-500.0,0.00044109,31]
[325354181,1714747856473,-500.0,0.00044109,31]
[325354182,1714747856483,-500.0,0.00044109,31]
[325354183,1714747856492,-500.0,0.00044109,31]
[325354184,1714747856502,-916.56,0.00044109,31]
[325354185,1714747856512,-979.42,0.00044109,31]
[325354186,1714747856522,-500.0,0.00044109,31]
[325354187,1714747856532,-720.22,0.00044109,31]
[325354188,1714747856541,-333.43571376,0.00044109,31]
[325354189,1714747856551,-500.0,0.00044109,31]
[325354190,1714747856561,-500.0,0.00044109,31]
[325354191,1714747856570,-1561.53,0.00044109,31]
[325354192,1714747856580,-689.09,0.00044109,31]
[325354193,1714747856589,-500.0,0.00044109,31]
[325354194,1714747856599,-500.0,0.00044109,31]
[325354195,1714747856609,-206.08781036,0.00044109,31]
[325354196,1714747856620,-500.0,0.00044109,31]
[325354197,1714747856630,-500.0,0.00044109,31]
[325354198,1714747856642,-180.00170583,0.00044109,31]
[325354199,1714747856652,-544.46,0.00044109,31]
[325354200,1714747856661,-500.0,0.00044109,31]
[325354201,1714747856671,-500.0,0.00044109,31]
[325354202,1714747856680,-496.14171215,0.00044109,31]
[325354203,1714747856691,-500.0,0.00044109,31]
[325354204,1714747856701,-1560.84,0.00044109,31]
[325354205,1714747856711,-759.43,0.00044109,31]
[325354206,1714747856720,-800.35,0.00044109,31]
[325354207,1714747856730,-1538.68,0.00044109,31]
[325354208,1714747856740,-1088.77,0.00044109,31]
[325354209,1714747856750,-542.74459347,0.00044109,31]
[325354210,1714747856759,-500.0,0.00044109,31]
[325354211,1714747856769,-1406.82,0.00044109,31]
[325354212,1714747856779,-523.01095151,0.00044109,31]
[325354213,1714747856790,-500.0,0.00044109,31]
[325354214,1714747856800,-1198.11,0.00044109,31]
[325354215,1714747856809,-500.0,0.00044109,31]
[325354216,1714747856820,-500.0,0.00044109,31]
[325354217,1714747856831,-500.0,0.00044109,31]
[325354218,1714747856842,-500.0,0.00044109,31]
[325354219,1714747856860,-500.0,0.00044109,31]
[325354220,1714747856870,-500.0,0.00044109,31]
[325354221,1714747856881,-500.0,0.00044109,31]
[325354222,1714747856895,-500.0,0.00044109,31]
[325354223,1714747856906,-509.42,0.00044109,31]
[325354224,1714747856917,-500.0,0.00044109,31]
[325354225,1714747856928,-744.79,0.00044109,31]
[325354226,1714747856938,-896.33,0.00044109,31]
[325354227,1714747856949,-500.0,0.00044109,31]
[325354228,1714747856960,-500.0,0.00044109,31]
[325354229,1714747856971,-500.0,0.00044109,31]
[325354230,1714747856982,-500.0,0.00044109,31]
[325354231,1714747856992,-1037.24,0.00044109,31]
[325354232,1714747857003,-500.0,0.00044109,31]
[325354233,1714747857014,-500.0,0.00044109,31]
[325354234,1714747857025,-1255.27,0.00044109,31]
[325354235,1714747857035,-785.12,0.00044109,31]
[325354236,1714747857046,-500.0,0.00044109,31]
[325354237,1714747857056,-1088.9,0.00044109,31]
[325354238,1714747857077,-500.0,0.00044109,31]
[325354239,1714747857088,-1392.45,0.00044109,31]
[325354240,1714747857099,-500.0,0.00044109,31]
[325354241,1714747857110,-1051.69,0.00044109,31]
[325354242,1714747857121,-500.0,0.00044109,31]
[325354243,1714747857131,-500.0,0.00044109,31]
[325354244,1714747857145,-500.0,0.00044109,31]
[325354245,1714747857155,-500.0,0.00044109,31]
[325354246,1714747857166,-500.0,0.00044109,31]
[325354247,1714747857176,-254.55,0.00044109,31]
[325354248,1714747857188,-170.89,0.00044109,31]
[325354249,1714747857201,-782.98,0.00044109,31]
[325354250,1714747857211,-1008.32,0.00044109,31]
[325354251,1714747857223,-1930.55,0.00044109,31]
[325354252,1714747857233,-500.0,0.00044109,31]
[325354253,1714747857243,-500.0,0.00044109,31]
[325354254,1714747857255,-500.0,0.00044109,31]
[325354255,1714747857265,-1120.06,0.00044109,31]
[325354256,1714747857275,-500.0,0.00044109,31]
[325354257,1714747857286,-500.0,0.00044109,31]
[325354258,1714747857296,-500.0,0.00044109,31]
[325354259,1714747857307,-500.0,0.00044109,31]
[325354260,1714747857318,-500.0,0.00044109,31]
[325354261,1714747857330,-500.0,0.00044109,31]
[325354262,1714747857341,-626.17,0.00044109,31]
[325354263,1714747857351,-882.7,0.00044109,31]
[325354264,1714747857362,-872.24,0.00044109,31]
[325354265,1714747857375,-500.0,0.00044109,31]
[325354266,1714747857386,-756.66,0.00044109,31]
[325354267,1714747857399,-1458.86,0.00044109,31]
[325354268,1714747857410,-500.0,0.00044109,31]
[325354269,1714747857421,-1321.55,0.00044109,31]
[325354270,1714747857432,-1481.16,0.00044109,31]
[325354271,1714747857443,-231.75714758,0.00044109,31]
[325354272,1714747857454,-500.0,0.00044109,31]
[325354273,1714747857464,-547.96083409,0.00044109,31]
[325354274,1714747857474,-910.12,0.00044109,31]
[325354275,1714747857485,-986.17,0.00044109,31]
[325354276,1714747857495,-1461.28,0.00044109,31]
[325354277,1714747857506,-500.0,0.00044109,31]
[325354278,1714747857516,-1306.4,0.00044109,31]
[325354279,1714747857527,-1682.56,0.00044109,31]
[325354280,1714747857537,-758.93,0.00044109,31]
[325354281,1714747857548,-500.0,0.00044109,31]
[325354282,1714747857558,-2548.02,0.00044109,31]
[325354283,1714747857569,-1967.22,0.00044109,31]
[325354284,1714747857579,-500.0,0.00044109,31]
[325354285,1714747857590,-500.0,0.00044109,31]
[325354286,1714747857604,-1449.07,0.00044109,31]
[325354287,1714747857615,-500.0,0.00044109,31]
[325354288,1714747857625,-979.38,0.00044109,31]
[325354289,1714747857637,-500.0,0.00044109,31]
[325354290,1714747857649,-1528.69,0.00044109,31]
[325354291,1714747857659,-614.46170563,0.00044109,31]
[325354292,1714747857669,-697.03,0.00044109,31]
[325354293,1714747857680,-500.0,0.00044109,31]
[325354294,1714747857692,-500.0,0.00044109,31]
[325354295,1714747857702,-526.40002524,0.00044109,31]
[325354296,1714747857713,-921.07,0.00044109,31]
[325354297,1714747857723,-2736.58,0.00044109,31]
[325354298,1714747857734,-970.43,0.00044109,31]
[325354299,1714747857744,-1501.93,0.00044109,31]
[325354300,1714747857754,-500.0,0.00044109,31]
[325354301,1714747857764,-1066.46,0.00044109,31]
[325354302,1714747857774,-910.59,0.00044109,31]
[325354303,1714747857784,-1329.23,0.00044109,31]
[325354304,1714747857794,-500.0,0.00044109,31]
[325354305,1714747857804,-980.0,0.00044109,31]
[325354306,1714747857814,-500.0,0.00044109,31]
[325354307,1714747857825,-2530.63,0.00044109,31]
[325354308,1714747857836,-500.0,0.00044109,31]
[325354309,1714747857847,-1541.98,0.00044109,31]
[325354310,1714747857858,-500.0,0.00044109,31]
[325354311,1714747857868,-500.0,0.00044109,31]
[325354312,1714747857879,-1288.22,0.00044109,31]
[325354313,1714747857889,-500.0,0.00044109,31]
[325354314,1714747857899,-513.28145534,0.00044109,31]
[325354315,1714747857910,-2271.01,0.00044109,31]
[325354316,1714747857920,-500.0,0.00044109,31]
[325354317,1714747857931,-1323.28,0.00044109,31]
[325354318,1714747857942,-500.0,0.00044109,31]
[325354319,1714747857952,-1318.27,0.00044109,31]
[325354320,1714747857967,-500.0,0.00044109,31]
[325354321,1714747857978,-531.89,0.00044109,31]
[325354322,1714747857989,-527.85,0.00044109,31]
[325354323,1714747858000,-1303.81,0.00044109,31]
[325354324,1714747858011,-500.0,0.00044109,31]
[325354325,1714747858022,-2687.94,0.00044109,31]
[325354326,1714747858034,-500.0,0.00044109,31]
[325354327,1714747858046,-2388.87,0.00044109,31]
[325354328,1714747858058,-500.0,0.00044109,31]
[325354329,1714747858069,-1320.33,0.00044109,31]
[325354330,1714747858080,-571.41,0.00044109,31]
[325354331,1714747858091,-500.0,0.00044109,31]
[325354332,1714747858102,-500.0,0.00044109,31]
[325354333,1714747858113,-2131.93,0.00044109,31]
[325354334,1714747858124,-1137.94,0.00044109,31]
[325354335,1714747858135,-500.0,0.00044109,31]
[325354336,1714747858147,-500.0,0.00044109,31]
[325354337,1714747858158,-1793.16,0.00044109,31]
[325354338,1714747858168,-500.0,0.00044109,31]
[325354339,1714747858179,-1698.98,0.00044109,31]
[325354340,1714747858190,-1604.54,0.00044109,31]
[325354341,1714747858201,-500.0,0.00044109,31]
[325354342,1714747858212,-698.34,0.00044109,31]
[325354343,1714747858223,-500.0,0.00044109,31]
[325354344,1714747858234,-500.0,0.00044109,31]
[325354345,1714747858245,-1631.53,0.00044109,31]
[325354346,1714747858256,-500.0,0.00044109,31]
[325354347,1714747858267,-720.86,0.00044109,31]
[325354348,1714747858277,-500.0,0.00044109,31]
[325354349,1714747858288,-610.41785859,0.00044109,31]
[325354350,1714747858299,-507.56813453,0.00044109,31]
[325354351,1714747858311,-1005.47,0.00044109,31]
[325354352,1714747858322,-500.0,0.00044109,31]
[325354353,1714747858333,-500.0,0.00044109,31]
[325354354,1714747858344,-1336.68,0.00044109,31]
[325354355,1714747858354,-500.0,0.00044109,31]
[325354356,1714747858366,-500.0,0.00044109,31]
[325354357,1714747858379,-500.0,0.00044109,31]
[325354358,1714747858391,-1933.67,0.00044109,31]
[325354359,1714747858402,-500.0,0.00044109,31]
[325354360,1714747858413,-493.30710735,0.00044109,31]
[325354361,1714747858424,-2454.22,0.00044109,2]
[325354362,1714747858435,-500.0,0.00044109,31]
[325354363,1714747858445,-922.7,0.00044109,31]
[325354364,1714747858455,-500.0,0.00044109,31]
[325354365,1714747858466,-1535.33,0.00044109,31]
[325354366,1714747858476,-500.0,0.00044109,31]
[325354367,1714747858487,-631.37,0.00044109,31]
[325354368,1714747858497,-500.0,0.00044109,31]
[325354369,1714747858509,-500.0,0.00044109,31]
[325354370,1714747858519,-958.58,0.00044109,31]
[325354371,1714747858530,-802.71,0.00044109,31]
[325354372,1714747858540,-2158.13,0.00044109,31]
[325354373,1714747858551,-500.0,0.00044109,31]
[325354374,1714747858562,-1190.09,0.00044109,31]
[325354375,1714747858573,-500.0,0.00044109,31]
[325354376,1714747858584,-1092.67,0.00044109,31]
[325354377,1714747858596,-500.0,0.00044109,31]
[325354378,1714747858610,-1249.57,0.00044109,31]
[325354379,1714747858620,-500.0,0.00044109,31]
[325354380,1714747858632,-1468.95,0.00044109,31]
[325354381,1714747858643,-765.59,0.00044109,31]
[325354382,1714747858655,-500.0,0.00044109,31]
[325354383,1714747858666,-704.6,0.00044109,31]
[325354384,1714747858676,-500.0,0.00044109,31]
[325354385,1714747858688,-1396.72,0.00044109,31]
[325354386,1714747858699,-1088.36,0.00044109,31]
[325354387,1714747858709,-1967.07,0.00044109,31]
[325354388,1714747858719,-952.37,0.00044109,31]
[325354389,1714747858731,-603.12,0.00044109,31]
[325354390,1714747858741,-1030.24,0.00044109,31]
[325354391,1714747858752,-500.0,0.00044109,31]
[325354392,1714747858763,-500.0,0.00044109,31]
[325354393,1714747858773,-2552.86,0.00044109,31]
[325354394,1714747858784,-537.89,0.00044109,31]
[325354395,1714747858795,-1706.42,0.00044109,31]
[325354396,1714747858806,-500.0,0.00044109,31]
[325354397,1714747858816,-1429.06,0.00044109,31]
[325354398,1714747858827,-500.0,0.00044109,31]
[325354399,1714747858838,-1597.59,0.00044109,31]
[325354400,1714747858848,-500.0,0.00044109,31]
[325354401,1714747858860,-1372.1,0.00044109,30]
[325354402,1714747858871,-2112.48,0.00044109,31]
[325354403,1714747858881,-500.0,0.00044109,31]
[325354404,1714747858892,-500.0,0.00044109,31]
[325354405,1714747858903,-618.06,0.00044109,31]
[325354406,1714747858914,-500.0,0.00044109,31]
[325354407,1714747858925,-500.0,0.00044109,31]
[325354408,1714747858936,-500.0,0.00044109,31]
[325354409,1714747858947,-760.0,0.00044109,31]
[325354410,1714747858958,-3613.93,0.00044109,31]
[325354411,1714747858969,-500.0,0.00044109,31]
[325354412,1714747858980,-1274.89,0.00044109,31]
[325354413,1714747858992,-1119.18,0.00044109,31]
[325354414,1714747859003,-568.1,0.00044109,31]
[325354415,1714747859013,-2141.4,0.00044109,31]
[325354416,1714747859024,-1100.07,0.00044109,31]
[325354417,1714747859035,-1529.13,0.00044109,31]
[325354418,1714747859046,-1059.6,0.00044109,31]
[325354419,1714747859057,-1452.76,0.00044109,31]
[325354420,1714747859067,-1470.22,0.00044109,31]
[325354421,1714747859078,-500.0,0.00044109,31]
[325354422,1714747859088,-500.0,0.00044109,31]
[325354423,1714747859098,-569.26,0.00044109,31]
[325354424,1714747859109,-310.11934345,0.00044109,31]
[325354425,1714747859119,-688.61,0.00044109,31]
[325354426,1714747859130,-1127.62,0.00044109,31]
[325354427,1714747859142,-2944.87,0.00044109,31]
[325354428,1714747859155,-500.0,0.00044109,31]
[325354429,1714747859487,-500.0,0.00044109,31]
[325354430,1714747859498,-2616.26,0.00044109,31]
[325354431,1714747859509,-1305.25,0.00044109,31]
[325354432,1714747859519,-500.0,0.00044109,31]
[325354433,1714747859530,-500.0,0.00044109,31]
[325354434,1714747859540,-500.0,0.00044109,31]
[325354435,1714747859550,-500.0,0.00044109,31]
[325354436,1714747859560,-584.44,0.00044109,31]
[325354437,1714747859570,-551.03,0.00044109,31]
[325354438,1714747859580,-500.0,0.00044109,31]
[325354439,1714747859590,-500.0,0.00044109,31]
[325354440,1714747859604,-627.83,0.00044109,31]
[325354441,1714747859614,-1301.59,0.00044109,31]
[325354442,1714747859623,-500.0,0.00044109,31]
[325354443,1714747859634,-669.39,0.00044109,31]
[325354444,1714747859645,-500.0,0.00044109,31]
[325354445,1714747859655,-744.8,0.00044109,31]
[325354446,1714747859665,-500.0,0.00044109,31]
[325354447,1714747859675,-1608.25,0.00044109,31]
[325354448,1714747859688,-1156.22,0.00044109,31]
[325354449,1714747859697,-756.33,0.00044109,31]
[325354450,1714747859707,-552.58,0.00044109,31]
[325354451,1714747859716,-695.47,0.00044109,31]
[325354452,1714747859726,-1130.73,0.00044109,31]
[325354453,1714747859735,-500.0,0.00044109,31]
[325354454,1714747859745,-680.76,0.00044109,31]
[325354455,1714747859754,-1168.38,0.00044109,31]
[325354456,1714747859764,-1142.61,0.00044109,31]
[325354457,1714747859774,-500.0,0.00044109,31]
[325354458,1714747859784,-669.54,0.00044109,31]
[325354459,1714747859793,-1284.51,0.00044109,31]
[325354460,1714747859803,-2086.34,0.00044109,31]
[325354461,1714747859812,-500.0,0.00044109,31]
[325354462,1714747859822,-500.0,0.00044109,31]
[325354463,1714747859831,-900.85,0.00044109,31]
[325354464,1714747859842,-1681.99,0.00044109,31]
[325354465,1714747859851,-754.17,0.00044109,31]
[325354466,1714747859860,-500.0,0.00044109,31]
[325354467,1714747859871,-1493.27,0.00044109,31]
[325354468,1714747859880,-500.0,0.00044109,31]
[325354469,1714747859890,-715.99,0.00044109,31]
[325354470,1714747859900,-3376.85,0.00044109,31]
[325354471,1714747859909,-2739.01,0.00044109,31]
[325354472,1714747859919,-719.77,0.00044109,31]
[325354473,1714747859929,-500.0,0.00044109,31]
[325354474,1714747859938,-551.87078371,0.00044109,31]
[325354475,1714747859948,-500.0,0.00044109,31]
[325354476,1714747859957,-1929.61,0.00044109,31]
[325354477,1714747859967,-1414.48,0.00044109,31]
[325354478,1714747859976,-1622.87,0.00044109,31]
[325354479,1714747859985,-1052.19,0.00044109,31]
[325354480,1714747859994,-618.05,0.00044109,31]
[325354481,1714747860004,-500.49,0.00044109,31]
[325354482,1714747860014,-32696.77,0.00044109,31]
[325354483,1714747860024,-762.7,0.00044109,31]
[325354484,1714747860033,-1812.5,0.00044109,31]
[325354485,1714747860044,-976.31,0.00044109,31]
[325354486,1714747860054,-500.0,0.00044109,31]
[325354487,1714747860063,-500.0,0.00044109,31]
[325354488,1714747860073,-1944.53,0.00044109,31]
[325354489,1714747860083,-1440.52,0.00044109,31]
[325354490,1714747860093,-500.0,0.00044109,31]
[325354491,1714747860102,-677.15,0.00044109,31]
[325354492,1714747860112,-500.0,0.00044109,31]
[325354493,1714747860121,-500.0,0.00044109,31]
[325354494,1714747860131,-2565.75,0.00044109,31]
[325354495,1714747860143,-1100.29,0.00044109,31]
[325354496,1714747860152,-590.51,0.00044109,31]
[325354497,1714747860161,-500.0,0.00044109,31]
[325354498,1714747860171,-1354.81,0.00044109,31]
[325354499,1714747860181,-1097.83,0.00044109,31]
[325354500,1714747860190,-500.0,0.00044109,31]
[325354501,1714747860200,-500.0,0.00044109,31]
[325354502,1714747860210,-500.0,0.00044109,31]
[325354503,1714747860219,-905.72,0.00044109,31]
[325354504,1714747860229,-575.75,0.00044109,31]
[325354505,1714747860238,-1779.94,0.00044109,31]